bitfinex-derivatives/quotes_BNBF0:USTF0_20250424
["timestamp","ask_amount","ask_price","bid_price","bid_amount"]
[1745488188315,1.27462458,597.89,596.24,1.06555623]
[1745488188514,1.27462458,597.89,596.25,0.30779585]
[1745488189416,1.27462458,597.89,596.24,1.06555623]
[1745488189616,1.27462458,597.89,596.25,0.3077961]
[1745488190717,0.29149879,597.88,596.25,0.3077961]
[1745488191018,0.29149879,597.88,596.24,1.06555623]
[1745488191218,0.29149879,597.88,596.25,0.30780141]
[1745488191618,0.29149879,597.88,596.2,0.30780141]
[1745488192519,1.27462458,597.99,596.2,0.30780141]
[1745488192917,0.29149269,597.87,596.2,0.30780141]
[1745488193121,1.27462458,597.99,596.2,0.30780141]
[1745488194120,1.27462458,598.04,596.16,1.06555623]
[1745488194414,1.27462458,598.04,596.17,0.30783067]
[1745488194415,0.291511,597.98,596.17,0.30783067]
[1745488196521,1.27462458,597.96,596.17,0.30783067]
[1745488196721,1.27462458,597.96,596.16,0.30783067]
[1745488196923,1.27462458,597.96,596.17,0.30783067]
[1745488197123,1.27462458,597.96,596.16,0.30783067]
[1745488197322,1.27462458,597.96,596.15,0.29149269]
[1745488197623,1.27462458,597.96,596.16,0.30782322]
[1745488199926,1.27462458,597.85,596.18,1.06555623]
[1745488200220,1.27462458,597.85,596.19,0.30782322]
[1745488200424,1.27462458,597.85,596.18,1.06555623]
[1745488200623,1.27462458,597.85,596.19,0.30779193]
[1745488200826,1.27462458,597.85,596.2,0.30779193]
[1745488201023,1.27462458,597.85,596.21,0.30779193]
[1745488201221,1.27462458,597.85,596.22,0.30779193]
[1745488201421,1.27462458,597.85,596.23,0.30779193]
[1745488201625,1.27462458,597.85,596.24,0.30776521]
[1745488201825,1.27462458,597.85,596.25,0.30776521]
[1745488202025,1.27462458,597.85,596.19,0.30776521]
[1745488202221,1.27462458,597.85,596.26,0.30776521]
[1745488202420,1.27462458,597.85,596.19,0.30776521]
[1745488202624,1.27462458,597.88,596.31,1.06555623]
[1745488203020,1.27462458,597.88,596.32,0.30776521]
[1745488204730,1.27462458,597.93,596.32,0.30776521]
[1745488204931,1.27462458,597.93,596.3,0.30776521]
[1745488205828,0.29145607,597.92,596.3,0.30776521]
[1745488206231,0.29145607,597.92,596.29,1.06555623]
[1745488206432,0.29145607,597.92,596.3,0.30773875]
[1745488207435,0.29145607,597.92,596.3,1.37329498]
[1745488207633,1.27462458,598.03,596.31,0.30773875]
[1745488207829,1.27462458,598.03,596.3,1.06555623]
[1745488208031,1.27462458,598.03,596.31,0.30774481]
[1745488208732,0.29144264,598.02,596.31,0.30774481]
[1745488209440,0.29144264,598.02,596.3,1.06555623]
[1745488209640,0.29144264,598.02,596.31,0.30774481]
[1745488210138,0.29144264,598.02,596.29,0.30774481]
[1745488211041,0.29144264,598.02,596.28,1.06555623]
[1745488211237,0.29144264,598.02,596.29,0.30775945]
[1745488213238,0.29144264,598.02,596.28,0.30775945]
[1745488213440,0.29144264,598.02,596.29,0.30775945]
[1745488213638,1.27462458,598.03,596.28,0.30775945]
[1745488213837,1.27462458,598.03,596.29,0.30776046]
[1745488214038,1.27462458,598.03,596.27,0.30776046]
[1745488214238,1.27462458,598.03,596.26,1.06555623]
[1745488214439,1.27462458,598.03,596.27,0.30776257]
[1745488214843,0.29146217,598.02,596.27,0.59922474]
[1745488215042,0.29146217,598.02,596.28,0.30776257]
[1745488215242,0.29146217,598.02,596.29,0.30776257]
[1745488215442,0.29146217,598.02,596.3,0.30776257]
[1745488215636,1.27462458,598.0,596.31,0.30776257]
[1745488215840,1.27462458,598.0,596.32,0.30776257]
[1745488216038,1.27462458,598.0,596.33,0.30776257]
[1745488216238,1.27462458,598.0,596.34,0.30776257]
[1745488216436,1.27462458,598.0,596.35,0.30776257]
[1745488216638,1.27462458,598.0,596.26,1.06555623]
[1745488216639,1.27462458,598.0,596.27,0.30776257]
[1745488216943,1.27462458,598.0,596.28,0.30776257]
[1745488217244,1.27462458,598.0,596.29,0.30776257]
[1745488217444,1.27462458,598.0,596.3,0.30776257]
[1745488217641,1.27462458,597.9,596.31,1.3733188]
[1745488217840,1.27462458,597.9,596.32,0.30776257]
[1745488219248,1.27462458,597.9,596.31,1.06555623]
[1745488219449,1.27462458,597.9,596.32,0.30785002]
[1745488219849,1.27462458,598.24,596.32,0.30785002]
[1745488220148,1.27462458,598.24,596.33,0.30785002]
[1745488220447,1.27462458,598.24,596.34,0.30785002]
[1745488220747,0.29151344,598.23,596.35,0.30785002]
[1745488220943,0.29151344,598.23,596.26,0.30785002]
[1745488221143,0.29151344,598.23,596.25,0.29151344]
[1745488221349,0.29151344,598.23,596.26,0.30785869]
[1745488222050,1.27462458,597.97,596.26,0.30785869]
[1745488222250,1.27462458,597.97,596.27,0.30786038]
[1745488222445,1.27462458,597.97,596.26,0.30786038]
[1745488222650,1.27462458,597.97,596.27,0.30786038]
[1745488222850,1.27462458,597.97,596.26,0.30786038]
[1745488225853,1.27462458,597.97,595.97,0.30786038]
[1745488226052,1.27462458,597.97,595.98,0.30786038]
[1745488226250,1.27462458,597.97,595.99,0.30786038]
[1745488226452,1.27462458,597.97,595.97,0.30786038]
[1745488226654,1.27462458,597.97,595.98,0.30786038]
[1745488226954,0.2915574,597.96,595.98,0.2915574]
[1745488227155,1.27462458,597.89,595.99,1.37343516]
[1745488227353,1.27462458,597.89,596.0,0.30787893]
[1745488228155,1.27462458,597.89,596.01,0.30787893]
[1745488229856,0.29156351,597.88,596.01,0.30787893]
[1745488231350,0.29156351,597.88,596.0,0.30787893]
[1745488231551,1.27462458,597.89,596.0,0.30787893]
[1745488231752,1.27462458,597.89,595.95,0.30787893]
[1745488231955,1.27462458,597.89,595.96,0.30787893]
[1745488232257,1.27462458,598.1,595.97,0.30787893]
[1745488232455,1.27462458,598.1,595.89,0.30787893]
[1745488232655,1.27462458,598.1,595.9,0.30787893]
[1745488232957,0.2915513,598.09,595.98,0.2915513]
[1745488233157,0.2915513,598.09,595.99,0.30787893]
[1745488233356,0.2915513,598.09,595.89,0.30787893]
[1745488234558,0.2915513,598.09,595.9,0.2915342]
[1745488234757,0.2915513,598.09,595.91,0.30787893]
[1745488234956,0.2915513,598.09,595.9,0.2915342]
[1745488235261,0.2915513,598.09,595.91,0.30784226]
[1745488236158,0.2915513,598.09,595.92,0.30784187]
[1745488236454,0.2915513,598.09,595.93,0.30784187]
[1745488236660,0.2915513,598.09,595.91,0.30784187]
[1745488236860,0.2915513,598.09,595.92,0.30784187]
[1745488237055,0.2915513,598.09,595.91,0.30784187]
[1745488237463,1.27462458,598.38,595.91,0.30784187]
[1745488237768,0.29149757,598.08,595.92,0.30783258]
[1745488237962,0.29149757,598.08,595.91,0.30783258]
[1745488238161,1.27462458,598.38,595.92,0.30783258]
[1745488238360,1.27462458,598.38,595.91,0.30783258]
[1745488238561,1.27462458,598.38,595.92,0.30783258]
[1745488238861,0.29149757,598.37,595.93,0.30783258]
[1745488239057,0.29149757,598.37,595.94,0.30783258]
[1745488239254,1.27462458,598.36,595.91,0.30783258]
[1745488239459,1.27462458,598.36,595.92,0.30783258]
[1745488239659,1.27462458,598.36,595.91,0.30783258]
[1745488240764,1.27462458,598.36,595.9,0.29149757]
[1745488240960,1.27462458,598.36,595.91,0.30783137]
[1745488241163,1.27462458,598.36,595.9,0.29149757]
[1745488241164,1.27462458,598.36,595.92,0.30783137]
[1745488241361,0.29149757,598.37,595.93,0.30783137]
[1745488241564,0.29149757,598.37,595.94,0.30783137]
[1745488241762,0.29149757,598.37,595.95,0.30783137]
[1745488241962,0.29149757,598.37,595.96,0.30783137]
[1745488242164,0.29149757,598.37,595.97,0.30783137]
[1745488242361,0.29149757,598.37,595.9,0.29149757]
[1745488242765,0.29149757,598.37,595.91,0.3078071]
[1745488242967,0.29149757,598.37,595.92,0.3078071]
[1745488243165,0.29149757,598.37,595.93,0.3078071]
[1745488243462,1.27462458,598.38,595.94,0.3078071]
[1745488243661,1.27462458,598.38,595.95,0.3078071]
[1745488243860,1.27462458,598.38,595.81,1.06555623]
[1745488244163,1.27462458,598.38,595.82,0.30776127]
[1745488244365,1.27462458,598.38,595.83,0.30776127]
[1745488244563,1.27462458,598.38,595.84,0.30776127]
[1745488244762,0.29147437,598.37,595.83,0.29147437]
[1745488245162,1.27462458,597.95,596.03,1.06555623]
[1745488245565,1.27462458,597.95,596.04,0.3077597]
[1745488245762,1.27462458,597.95,596.05,0.3077597]
[1745488245966,1.27462458,597.95,596.06,0.3077597]
[1745488246161,1.27462458,597.95,596.04,0.3077597]
[1745488246365,1.27462458,597.95,596.05,0.3077597]
[1745488246564,1.27462458,597.95,596.06,0.3077597]
[1745488246766,1.27462458,597.95,596.04,0.3077597]
[1745488247062,1.27462458,597.95,596.05,0.3077597]
[1745488247063,0.29150001,597.94,596.05,0.3077597]
[1745488247266,0.29150001,597.94,596.06,0.30776017]
[1745488247461,0.29150001,597.94,596.07,0.30776017]
[1745488247662,0.29150001,597.94,596.08,0.30776017]
[1745488247965,0.29150001,597.94,596.09,0.30776017]
[1745488248162,0.29150001,597.94,596.04,0.30776017]
[1745488248366,0.29150001,597.94,596.08,1.06555623]
[1745488248567,0.29150001,597.94,596.09,0.30776017]
[1745488248767,0.29150001,597.94,596.1,0.30776017]
[1745488248961,0.29150001,597.94,596.11,0.30776017]
[1745488249163,0.29150001,597.94,596.12,0.30776017]
[1745488249367,0.29150001,597.94,596.13,0.30776017]
[1745488249568,1.27462458,598.29,596.14,0.30776017]
[1745488249767,1.27462458,598.29,596.09,0.30776017]
[1745488250067,0.2914524,597.93,596.1,0.30776017]
[1745488250267,1.27462458,598.29,596.08,1.06555623]
[1745488250467,1.27462458,598.29,596.09,0.30776135]
[1745488250669,1.27462458,598.29,596.1,0.30776135]
[1745488250863,1.27462458,598.2,596.12,1.06555623]
[1745488251066,1.27462458,598.2,596.13,0.30776135]
[1745488251269,1.27462458,598.2,596.14,0.30776135]
[1745488251466,1.27462458,598.2,596.15,0.30776135]
[1745488251666,1.27462458,598.2,596.13,0.30776135]
[1745488251866,1.27462458,598.2,596.12,1.06555623]
[1745488252065,1.27462458,598.2,596.13,0.30776327]
[1745488252470,1.27462458,598.2,596.14,0.30776327]
[1745488252769,0.29145851,598.19,596.15,0.30776327]
[1745488252969,0.29145851,598.19,596.16,0.30776327]
[1745488253166,1.56608309,598.19,596.17,0.30776327]
[1745488253367,1.56608309,598.19,596.12,1.06555623]
[1745488253566,1.56608309,598.19,596.13,0.30776116]
[1745488253770,1.56608309,598.19,596.14,0.30776116]
[1745488253969,1.56608309,598.19,596.15,0.30776116]
[1745488254268,1.56608309,598.19,596.16,0.30776116]
[1745488254468,1.56608309,598.19,596.17,0.30776116]
[1745488254670,1.56608309,598.19,596.18,0.30776116]
[1745488254870,1.56608309,598.19,596.19,0.30776116]
[1745488255066,1.56608309,598.19,596.2,0.30776116]
[1745488255270,1.56608309,598.19,596.21,0.30776116]
[1745488255470,1.56608309,598.19,596.12,1.06555623]
[1745488255471,1.56608309,598.19,596.22,0.30776116]
[1745488255672,1.27462458,597.98,596.23,0.30776116]
[1745488255871,1.27462458,597.98,596.24,0.30776116]
[1745488256071,1.27462458,597.98,596.25,0.30776116]
[1745488256271,1.27462458,597.98,596.26,0.30776116]
[1745488256471,1.27462458,597.98,596.27,0.30776116]
[1745488256672,1.27462458,597.98,596.28,0.30776116]
[1745488256873,0.29147315,597.97,596.29,0.30776116]
[1745488257076,0.29147315,597.97,596.3,0.30776116]
[1745488257278,0.29147315,597.97,596.31,0.30776116]
[1745488257481,0.29147315,597.97,596.32,0.30776116]
[1745488257674,0.29147315,597.97,596.33,0.30776116]
[1745488257979,0.29147315,597.97,596.34,0.30776116]
[1745488258279,0.29147315,597.97,596.35,0.30776116]
[1745488258483,1.27462458,597.99,596.23,0.30776116]
[1745488258780,1.27462458,597.99,596.24,0.30776116]
[1745488259081,1.27462458,597.99,596.25,0.30776116]
[1745488259082,0.29147315,597.96,596.25,0.30776116]
[1745488259275,0.29147315,597.96,596.26,0.30776116]
[1745488259580,0.29147315,597.96,596.27,0.30776116]
[1745488259780,0.29147315,597.96,596.22,1.35702938]
[1745488259781,0.29147315,597.96,596.28,0.30775996]
[1745488259980,0.29147315,597.96,596.29,0.30775996]
[1745488260181,0.29147315,597.96,596.3,0.30775996]
[1745488260478,0.29147315,597.96,596.31,0.30775996]
[1745488260678,0.29147315,597.96,596.22,1.35702938]
[1745488260679,0.29147315,597.96,596.32,0.30775996]
[1745488260976,0.29147315,597.96,596.22,1.35702938]
[1745488261177,0.29147315,597.96,596.23,0.3077685]
[1745488261380,0.29147315,597.96,596.24,0.3077685]
[1745488261581,1.27462458,597.99,596.25,0.3077685]
[1745488261781,1.27462458,597.99,596.26,0.3077685]
[1745488261977,1.27462458,597.99,596.27,0.3077685]
[1745488262177,1.27462458,597.99,596.23,0.3077685]
[1745488262380,1.27462458,597.99,596.24,0.30779835]
[1745488262581,1.27462458,597.99,596.23,0.30779835]
[1745488262778,0.29150611,597.98,596.24,0.30779835]
[1745488262984,0.29150611,597.98,596.23,0.30779835]
[1745488264486,1.27462458,598.23,596.23,0.30779835]
[1745488264784,0.29147682,597.97,596.24,0.30779835]
[1745488264984,1.27462458,598.23,596.23,0.30779835]
[1745488265184,1.27462458,598.23,596.24,0.30779835]
[1745488265386,1.27462458,598.23,596.23,0.30779835]
[1745488265585,1.27462458,598.23,596.24,0.30779835]
[1745488265785,0.29145973,598.22,596.23,0.30779835]
[1745488266086,0.29145973,598.22,596.24,0.30779835]
[1745488266384,0.29145973,598.22,596.23,0.30779835]
[1745488266586,1.27462458,598.14,596.24,0.30779835]
[1745488266982,1.27462458,598.14,596.25,0.30779835]
[1745488267182,1.27462458,598.14,596.23,0.30779835]
[1745488267380,1.27462458,598.14,596.24,0.30779835]
[1745488267580,1.27462458,598.14,596.23,0.30779835]
[1745488267884,1.27462458,598.14,596.24,0.30779835]
[1745488268085,1.27462458,598.14,595.96,0.30779835]
[1745488268282,1.27462458,598.14,595.97,0.30779835]
[1745488268479,1.27462458,598.14,595.98,0.30779835]
[1745488268679,1.27462458,598.14,595.99,0.30779903]
[1745488268985,1.27462458,598.14,595.95,1.06555623]
[1745488268986,0.29150367,598.13,596.02,1.06555623]
[1745488269185,0.29150367,598.13,596.03,0.30779903]
[1745488269385,0.29150367,598.13,596.04,0.30779903]
[1745488269587,0.29150367,598.13,596.03,0.30779903]
[1745488269786,0.29150367,598.13,596.04,0.30779903]
[1745488270087,0.29150367,598.13,596.05,0.30779903]
[1745488270288,0.29150367,598.13,596.03,0.30779903]
[1745488271686,0.29150367,598.13,595.98,0.29150367]
[1745488271687,0.29150367,598.13,595.99,0.30779903]
[1745488271890,0.29150367,598.13,595.98,0.29150367]
[1745488272090,0.29150367,598.13,595.99,0.30791572]
[1745488273488,0.29150367,598.13,596.0,0.30791984]
[1745488273687,0.29150367,598.13,595.99,0.30791984]
[1745488273885,1.27462458,598.1,595.99,0.30791984]
[1745488276494,1.27462458,598.1,595.73,1.06555623]
[1745488276689,1.27462458,598.1,595.74,0.30792206]
[1745488276888,0.29156839,598.09,595.98,0.29156839]
[1745488277088,0.29156839,598.09,595.99,0.30792206]
[1745488277289,1.27462458,598.0,595.74,1.37347829]
[1745488277487,1.27462458,598.0,595.75,0.30792206]
[1745488277693,1.27462458,598.0,595.76,0.30792206]
[1745488277889,1.27462458,598.0,595.77,0.30792206]
[1745488278088,1.27462458,598.0,595.78,0.30792206]
[1745488278490,1.27462458,598.0,595.79,0.30792206]
[1745488278696,1.27462458,598.0,595.8,0.30792206]
[1745488278993,1.27462458,598.0,595.81,0.30792206]
[1745488279192,1.27462458,598.0,595.82,0.30792206]
[1745488279391,1.27462458,598.0,595.83,0.30792206]
[1745488279695,1.27462458,598.0,595.74,1.06555623]
[1745488279893,1.27462458,598.0,595.75,0.30792461]
[1745488280090,1.27462458,598.0,595.76,0.30792461]
[1745488280395,1.27462458,597.9,595.77,0.30792461]
[1745488280790,1.27462458,597.9,595.78,0.30792461]
[1745488280990,1.27462458,597.9,595.79,0.30792461]
[1745488281191,1.27462458,597.9,595.8,0.30792461]
[1745488281394,1.27462458,597.9,595.81,0.30792461]
[1745488281694,1.27462458,597.9,595.82,0.30792461]
[1745488281894,1.27462458,597.9,595.83,0.30792461]
[1745488282095,1.27462458,597.9,595.84,0.30792461]
[1745488282289,1.27462458,597.9,595.85,0.30792461]
[1745488282489,1.27462458,597.9,595.86,0.30792461]
[1745488282994,1.27462458,597.9,595.75,0.29160993]
[1745488283195,1.27462458,597.9,595.76,0.30793525]
[1745488285798,1.27462458,597.9,595.42,1.06555623]
[1745488285799,1.27462458,598.0,595.74,0.30793525]
[1745488286099,1.27462458,598.0,595.75,0.30793525]
[1745488286297,1.27462458,598.0,595.58,0.30793525]
[1745488286492,1.27462458,598.0,595.59,0.30793525]
[1745488286698,1.27462458,598.0,595.6,0.30793525]
[1745488286993,0.2916527,597.99,595.61,0.30793525]
[1745488287199,0.2916527,597.99,595.62,0.30793525]
[1745488287398,0.2916527,597.99,595.63,0.30793525]
[1745488287694,0.2916527,597.99,595.64,0.30793525]
[1745488287998,0.2916527,597.99,595.65,0.30795796]
[1745488288193,0.2916527,597.99,595.66,0.30795796]
[1745488288392,0.2916527,597.99,595.67,0.30795796]
[1745488288595,1.27462458,598.06,595.68,0.30795796]
[1745488288798,1.27462458,598.06,595.69,0.30795796]
[1745488288991,1.27462458,598.06,595.7,0.30795796]
[1745488289195,1.27462458,598.06,595.71,0.30795796]
[1745488289393,1.27462458,598.06,595.55,1.06555623]
[1745488289698,1.27462458,598.06,595.56,0.30795731]
[1745488289898,0.29164781,598.05,595.64,0.29164781]
[1745488290096,0.29164781,598.05,595.65,0.30795731]
[1745488290299,0.29164781,598.05,595.66,0.30795731]
[1745488290593,0.29164781,598.05,595.67,0.30795731]
[1745488290798,1.27462458,598.03,595.68,0.30795731]
[1745488290999,1.27462458,598.03,595.57,1.06555623]
[1745488291201,1.27462458,598.03,595.58,0.30795832]
[1745488291694,1.27462458,598.03,595.59,0.30795465]
[1745488291894,1.27462458,598.03,595.6,0.30795465]
[1745488292097,1.27462458,598.03,595.61,0.30795465]
[1745488292298,1.27462458,598.03,595.62,0.30795465]
[1745488292498,1.27462458,598.03,595.63,0.30795465]
[1745488292698,1.27462458,598.03,595.64,0.30795465]
[1745488292899,0.29164781,598.02,595.65,0.30795465]
[1745488293092,0.29164781,598.02,595.66,0.30795465]
[1745488293293,0.29164781,598.02,595.67,0.30795465]
[1745488293498,0.29164781,598.02,595.68,0.30795465]
[1745488293699,1.27462458,598.01,595.69,0.30795465]
[1745488293999,1.27462458,598.01,595.7,0.30795465]
[1745488294199,1.27462458,598.01,595.71,0.30795465]
[1745488294401,1.27462458,598.01,595.59,1.06555623]
[1745488294602,1.27462458,598.01,595.6,0.30795292]
[1745488294801,1.27462458,598.01,595.61,0.30795292]
[1745488295002,1.27462458,598.01,595.62,0.30795292]
[1745488295203,1.27462458,598.01,595.63,0.30795292]
[1745488295599,1.27462458,598.01,595.64,0.30795292]
[1745488295797,0.29162948,598.0,595.65,0.30795292]
[1745488296001,0.29162948,598.0,595.6,0.29162948]
[1745488296202,0.29162948,598.0,595.61,0.30795036]
[1745488296399,0.29162948,598.0,595.62,0.30795036]
[1745488296604,1.27462458,597.86,595.7,1.06555623]
[1745488296806,1.27462458,597.86,595.71,0.30795036]
[1745488297102,1.27462458,597.86,595.72,0.30795036]
[1745488297306,1.27462458,597.86,595.73,0.30795036]
[1745488297502,1.27462458,597.86,595.74,0.30795036]
[1745488297701,1.27462458,597.86,595.71,0.30795036]
[1745488298808,0.29160993,597.85,595.72,0.30795036]
[1745488299007,0.29160993,597.85,595.71,0.30795036]
[1745488299203,0.29160993,597.85,595.69,1.06555623]
[1745488299401,0.29160993,597.85,595.7,0.30790823]
[1745488299606,0.29160993,597.85,595.71,0.30790823]
[1745488299810,0.29160993,597.85,595.7,0.30790823]
[1745488300008,0.29160993,597.85,595.71,0.30790823]
[1745488300203,0.29160993,597.85,595.7,0.30790823]
[1745488300404,0.29160993,597.85,595.71,0.30790823]
[1745488300604,1.27462458,598.11,595.7,0.30790823]
[1745488300909,0.29158061,597.84,595.71,0.30790823]
[1745488301104,1.27462458,598.11,595.71,0.30790823]
[1745488301310,1.27462458,598.11,595.72,0.30790823]
[1745488301607,1.27462458,598.11,595.73,0.30790823]
[1745488301809,1.27462458,598.11,595.67,0.29158061]
[1745488301810,0.29158061,598.1,595.74,1.06555623]
[1745488302009,0.29158061,598.1,595.75,0.30790823]
[1745488303505,1.27462458,598.13,595.75,0.30790823]
[1745488303803,0.29159649,598.09,595.75,0.30790823]
[1745488304110,0.29159649,598.09,595.74,1.06555623]
[1745488304310,0.29159649,598.09,595.75,0.30792046]
[1745488304511,1.27462458,598.01,595.81,1.06555623]
[1745488304713,1.27462458,598.01,595.82,0.30792046]
[1745488306715,1.27462458,597.71,595.91,1.06555623]
[1745488306906,1.27462458,597.71,595.92,0.30792046]
[1745488307413,1.27462458,597.71,595.91,1.06555623]
[1745488307713,1.27462458,597.71,595.92,0.30794011]
[1745488308008,0.2916417,597.7,595.92,0.30794011]
[1745488309014,0.2916417,597.7,595.91,1.06555623]
[1745488309214,0.2916417,597.7,595.92,0.30794246]
[1745488309611,1.27462458,597.78,595.89,0.30794246]
[1745488309815,0.2916417,597.69,595.9,0.30794246]
[1745488310007,1.27462458,597.78,595.89,0.30794246]
[1745488310208,1.27462458,597.78,595.9,0.30794246]
[1745488310413,1.27462458,597.78,595.91,0.30794246]
[1745488310710,1.27462458,597.78,595.92,0.30794246]
[1745488310909,0.29163681,597.77,595.89,0.30794246]
[1745488311110,0.29163681,597.77,595.9,0.30794246]
[1745488311309,0.29163681,597.77,595.91,0.30794246]
[1745488311512,0.29163681,597.77,595.89,0.30794246]
[1745488311713,0.29163681,597.77,595.9,0.30794246]
[1745488311911,0.29163681,597.77,595.91,0.30794246]
[1745488312113,0.29163681,597.77,595.85,0.30794246]
[1745488313714,0.29163681,597.77,595.84,0.2916417]
[1745488313915,0.29163681,597.77,595.85,0.30802859]
[1745488314109,0.29163681,597.77,595.84,0.2916417]
[1745488314816,0.29163681,597.77,595.85,0.30803241]
[1745488314817,1.27462458,597.75,595.85,0.30803241]
[1745488315911,1.27462458,597.75,595.77,0.30803241]
[1745488316817,0.2916967,597.74,595.77,0.30803241]
[1745488317018,0.2916967,597.74,595.78,0.29170159]
[1745488317417,0.2916967,597.74,595.79,0.30805621]
[1745488318519,1.27462458,597.75,595.76,1.06555623]
[1745488318720,1.27462458,597.75,595.77,0.30806166]
[1745488318921,1.27462458,597.65,595.77,0.30806166]
[1745488319121,1.27462458,597.65,595.58,0.30806166]
[1745488319715,0.29175173,597.64,595.58,0.30806166]
[1745488319921,0.29175173,597.64,595.59,0.59981339]
[1745488320314,0.29175173,597.64,595.6,0.30805513]
[1745488320515,0.29175173,597.64,595.61,0.30805513]
[1745488320719,0.29175173,597.64,595.62,0.30805513]
[1745488320920,0.29175173,597.64,595.63,0.30805513]
[1745488321124,0.29175173,597.64,595.64,0.30805513]
[1745488321325,1.27462458,597.52,595.65,0.30805513]
[1745488321525,1.27462458,597.52,595.6,0.30805513]
[1745488321819,1.27462458,597.52,595.61,0.30805513]
[1745488322018,1.27462458,597.52,595.62,0.30805513]
[1745488322322,1.27462458,597.52,595.63,0.30805513]
[1745488322525,1.27462458,597.52,595.64,0.30805513]
[1745488322825,0.29176763,597.51,595.65,0.30805513]
[1745488323022,0.29176763,597.51,595.66,0.30806366]
[1745488323219,0.29176763,597.51,595.67,0.30806366]
[1745488323424,0.29176763,597.51,595.63,0.30806366]
[1745488323626,0.29176763,597.51,595.64,0.30806366]
[1745488323822,0.29176763,597.51,595.63,0.30806366]
[1745488324020,0.29176763,597.51,595.64,0.30806366]
[1745488324219,0.29176763,597.51,595.63,0.30806366]
[1745488324422,0.29176763,597.51,595.64,0.30806366]
[1745488324622,1.27462458,597.56,595.63,0.30806366]
[1745488324821,1.27462458,597.56,595.64,0.30806366]
[1745488325827,0.29176273,597.55,595.64,0.30806366]
[1745488326128,0.29176273,597.55,595.63,0.29176151]
[1745488326327,0.29176273,597.55,595.65,0.3080843]
[1745488326527,0.29176273,597.55,595.66,0.3080843]
[1745488326822,0.29176273,597.55,595.67,0.3080843]
[1745488327021,0.29176273,597.55,595.64,0.3080843]
[1745488327526,1.27462458,597.56,595.64,0.3080843]
[1745488327729,1.27462458,597.56,595.5,1.06555623]
[1745488327929,1.27462458,597.56,595.51,0.30810058]
[1745488328124,1.27462458,597.56,595.5,1.06555623]
[1745488328125,1.27462458,597.56,595.52,0.30810058]
[1745488328327,1.27462458,597.56,595.53,0.30810058]
[1745488328524,1.27462458,597.56,595.54,0.30810058]
[1745488328724,1.27462458,597.56,595.55,0.30810058]
[1745488328928,0.29178353,597.55,595.56,0.30810058]
[1745488329129,0.29178353,597.55,595.57,0.30810058]
[1745488329429,0.29178353,597.55,595.54,0.29178353]
[1745488329430,1.27462458,597.5,595.58,0.30810058]
[1745488329630,1.27462458,597.5,595.59,0.30810058]
[1745488329830,1.27462458,597.5,595.6,0.30810058]
[1745488330125,1.27462458,597.5,595.61,0.30810058]
[1745488330330,1.27462458,597.5,595.55,0.30810058]
[1745488330531,1.27462458,597.5,595.56,0.30810058]
[1745488330730,1.27462458,597.5,595.57,0.30810058]
[1745488330930,1.27462458,597.5,595.54,0.29178353]
[1745488331128,1.27462458,597.5,595.55,0.30810058]
[1745488332331,0.29178353,597.55,595.55,0.30810058]
[1745488333632,1.27462458,597.59,595.55,0.30810058]
[1745488333825,1.27462458,597.59,595.39,0.30810058]
[1745488334030,1.27462458,597.59,595.38,1.06555623]
[1745488334334,1.27462458,597.59,595.39,0.30810759]
[1745488334532,1.27462458,597.59,595.4,0.30810759]
[1745488334832,0.2917823,597.58,595.41,0.30810759]
[1745488335031,0.2917823,597.58,595.42,0.30810759]
[1745488335327,0.2917823,597.58,595.43,0.30810759]
[1745488335733,0.2917823,597.58,595.4,0.2917823]
[1745488335934,0.2917823,597.58,595.44,0.30810183]
[1745488336332,0.2917823,597.58,595.41,0.30810183]
[1745488336532,1.27462458,597.78,595.45,0.30810183]
[1745488336733,1.27462458,597.78,595.42,0.30810183]
[1745488336933,1.27462458,597.78,595.26,1.06555623]
[1745488336934,1.27462458,597.78,595.46,0.30810183]
[1745488337128,1.27462458,597.78,595.47,0.30810183]
[1745488337329,1.27462458,597.78,595.48,0.30808705]
[1745488337637,1.27462458,597.78,595.49,0.30808705]
[1745488337839,0.29177374,597.77,595.43,0.29177374]
[1745488338037,0.29177374,597.77,595.44,0.30808705]
[1745488340342,0.29177374,597.77,595.43,0.29177374]
[1745488340542,0.29177374,597.77,595.44,0.30811881]
[1745488341642,0.29177374,597.77,595.45,0.30811881]
[1745488341839,0.29177374,597.77,595.46,0.30811881]
[1745488342035,0.29177374,597.77,595.47,0.30811881]
[1745488342236,0.29177374,597.77,595.48,0.30811881]
[1745488342440,0.29177374,597.77,595.49,0.30811881]
[1745488342743,0.29177374,597.77,595.5,0.30811881]
[1745488342939,0.29177374,597.77,595.44,0.30811881]
[1745488343136,0.29177374,597.77,595.45,0.30811881]
[1745488343443,0.29177374,597.77,595.46,0.30811881]
[1745488343644,0.29177374,597.77,595.43,0.29177374]
[1745488343645,0.29177374,597.77,595.47,0.30811025]
[1745488343843,0.29177374,597.77,595.48,0.30811025]
[1745488344046,0.29177374,597.77,595.44,0.30811025]
[1745488344246,0.29177374,597.77,595.45,0.30811025]
[1745488344445,0.29177374,597.77,595.43,0.29177374]
[1745488344446,0.29177374,597.77,595.44,0.30811025]
[1745488345147,0.29177374,597.77,595.43,0.29177374]
[1745488345347,1.27462458,597.7,595.44,0.30810602]
[1745488345847,1.27462458,597.7,595.35,0.30810602]